Cogmind - Beta 13 @@@ ROGUE MODE // 2024.04.26 @ 07:55:07 Player: tikka Result: Destroyed by L-31 Rogue with Katana Performance ------------- Evolutions (1) 500 Regions Visited (2) 400 Robots Destroyed (27) 135 Value Destroyed (550) 550 Prototype IDs (1) 20 Alien Tech Used (0) 0 Bonus (0) 0 TOTAL SCORE: 1605 Bonus ------- None Cogmind --------- Core Integrity 0/400 Matter 290/300 Energy 94/100 System Corruption 0% Temperature Cool (0) Movement Core (350) Ox6 Location -9/Materials Parts ------- > --- POWER (1) -------- (None) > --- PROPULSION (2) --- (None) > --- UTILITY (4) ------ Large Storage Unit Visual Processing Unit > --- WEAPON (2) ------- (None) > --- INVENTORY (15) --- (None) Peak State ------------ > --- POWER ------------ Ion Engine > --- PROPULSION ------- Aluminum Leg Aluminum Leg > --- UTILITY ---------- Improved Heat Sink Small Storage Unit > --- WEAPON ----------- Assault Rifle Light Assault Rifle > --- INVENTORY -------- (None) [Rating: 9] Favorites ----------- Power Light Ion Engine Engine Light Ion Engine Propulsion Aluminum Leg Leg Aluminum Leg Flight Unit Flight Unit Utility Large Storage Unit Device Improved Heat Sink Storage Large Storage Unit Processor Visual Processing Unit Weapon Rocket Launcher Energy Gun Small Laser Ballistic Gun Light Assault Rifle Launcher Rocket Launcher Build | -11 -10 -9 ------- Run | Yrd Mat Mat Slots Evolved 2 | . . 2 Power . | . . . Propulsion . | . . . Utility 2 | . . 2 Weapon . | . . . Parts Attached 19 | 6 4 9 Power 4 | 1 . 3 Engine 4 | 1 . 3 Core . | . . . Reactor . | . . . Propulsion 3 | 2 . 1 Treads . | . . . Leg 2 | 2 . . Wheel . | . . . Hover . | . . . Flight 1 | . . 1 Utility 7 | 1 4 2 Device 2 | . 1 1 Storage 4 | 1 3 . Processor 1 | . . 1 Hackware . | . . . Protection . | . . . Artifact . | . . . Weapon 5 | 2 . 3 Energy Gun 1 | . . 1 Energy Cannon . | . . . Ballistic Gun 3 | 2 . 1 Ballistic Cannon . | . . . Launcher 1 | . . 1 Special Weapon . | . . . Impact Weapon . | . . . Slashing Weapon . | . . . Piercing Weapon . | . . . Special Melee Weapon . | . . . Unidentified Prototypes 1 | . . 1 Parts Lost 11 | . . 11 Power 2 | . . 2 Propulsion 3 | . . 3 Utility 2 | . . 2 Weapon 4 | . . 4 Highest Loss Streak 5 | . . 5 To Critical Strikes . | . . . Average Slot Usage (%) 68 | . 93 61 Engine 10 | . 14 9 Leg 8 | . 28 2 Flight 6 | . . 8 Device 1 | . 2 . Storage 20 | . 18 20 Energy Gun 5 | . . 7 Ballistic Gun 9 | . 28 3 Launcher 6 | . . 8 Naked Turns . | . . . Heaviest Build 30 | 13 30 30 Greatest Support 20 | 20 20 20 Greatest Overweight (x) 8 | . 1 8 Average Overweight (x) 2 | . . 5 Largest Inventory Capacity 15 | 8 15 15 Average Capacity 13 | 7 9 15 Most Carried 5 | 5 2 2 Average Carried . | 1 . . Final Capacity 15 | 8 15 15 Final Carried 1 | . 1 . Class Distribution -------------------- 100% | Mutant Dominant Class ---------------- Mutant | -10/Materials Mutant | -9/Materials Resources | -11 -10 -9 ----------- Run | Yrd Mat Mat Matter Collected 576 | 258 124 194 Remotely . | . . . Salvage Created 651 | . 308 343 Parts 58 | . 24 34 Haulers Intercepted . | . . . Recyclers Shooed . | . . . Parts Field Recycled . | . . . Retrieved Matter . | . . . Parts Self-Destructed . | . . . Prevented . | . . . Kills | -11 -10 -9 ------- Run | Yrd Mat Mat Combat Hostiles Destroyed 18 | . 7 11 Guns 13 | . 7 6 AOE 5 | . . 5 Classes Destroyed 6 | . 4 2 Worker 2 | . 2 . Recycler 1 | . . 1 Watcher 6 | . 2 4 Swarmer 9 | . 3 6 Grunt 8 | . 4 4 Sentry 1 | . . 1 Best Kill Streak 10 | . 10 4 Combat Bots Only 4 | . 4 3 Max Kills in Single Turn 3 | . 2 3 Gunslinging 1 | . 1 . Exploded 3 | . . 3 Melee . | . . . Uniques/NPCs Destroyed . | . . . Combat | -11 -10 -9 -------- Run | Yrd Mat Mat Hostile Shots Fired 144 | . 44 100 Missed 38 | . 15 23 Damage Taken 1348 | . 309 1039 Core 451 | . 45 406 Absorbed by Shields . | . . . Core Remaining (%) 91 | 100 82 . Volleys Fired 64 | . 28 36 Largest 2 | . 2 2 Hottest 73 | . 40 73 Shots Fired 114 | . 56 58 Gun 108 | . 56 52 Cannon . | . . . Launcher 6 | . . 6 Special . | . . . Kinetic 95 | . 56 39 Thermal 13 | . . 13 Explosive 6 | . . 6 Electromagnetic . | . . . Robot Hit Streak 6 | . 5 6 Robot Miss Streak 2 | . 2 2 Penetration Max . | . . . Secondary Targets 3 | . 1 2 Max Gunslinging Chain 1 | . 1 1 Shots Hit Robots 72 | . 33 39 Core Hits 48 | . 21 27 Critical Kills . | . . . Critical Parts Destroyed . | . . . Critical Strikes . | . . . Melee Attacks . | . . . Impact . | . . . Slashing . | . . . Piercing . | . . . Sneak Attacks . | . . . Combat Hostiles . | . . . Follow-up Attacks . | . . . Damage Inflicted 1186 | . 382 804 Guns 729 | . 382 347 Cannons . | . . . Explosions 455 | . . 455 Melee . | . . . Ramming 2 | . . 2 Kinetic 614 | . 382 232 Thermal 115 | . . 115 Explosive 455 | . . 455 Electromagnetic . | . . . Impact . | . . . Slashing . | . . . Piercing . | . . . Highest Corruption 1 | . 1 . Average Corruption 1 | . 1 . Corruption Purged . | . . . Corruption Blocked . | . . . Effects 1 | . 1 . Heat Flow Errors 1 | . 1 . Overload Shots . | . . . Overflow Damage . | . . . Projectiles . | . . . Explosions . | . . . Melee . | . . . Knockbacks . | . . . Impact . | . . . Kinetic . | . . . Secondary . | . . . Self-Inflicted Damage 61 | . . 61 Shots 2 | . . 2 Rammed 1 | . . 1 Targets Rammed 1 | . . 1 Kicked . | . . . Crushed . | . . . Highest Temperature 412 | . 144 412 Average Temperature 99 | . 34 147 Received Heat Transfer 477 | . 129 348 Siege Activations . | . . . Robots Corrupted . | . . . Combat Hostiles . | . . . Parts Fried . | . . . Impact Corruptions . | . . . Robots Melted . | . . . Combat Hostiles . | . . . Parts Melted . | . . . Heat Transferred 250 | . . 250 Parts Sabotaged . | . . . Parts Stolen . | . . . Parts Stripped . | . . . Power Chain Reactions . | . . . Alert | -11 -10 -9 ------- Run | Yrd Mat Mat Peak Influence 286 | . 224 286 Initial 94 | . . 94 Average 118 | . 139 121 Maximum Alert Level 1 | . 1 1 Low Security (%) 78 | 100 48 85 Level 1 21 | . 51 14 Level 2 . | . . . Level 3 . | . . . Level 4 . | . . . Level 5 . | . . . High Security . | . . . Max Security . | . . . Squads Dispatched . | . . . Investigation . | . . . Extermination . | . . . Reinforcement . | . . . Assault . | . . . Garrison . | . . . Intercept . | . . . Searches Triggered . | . . . Construction Impeded . | . . . Haulers Reinforced . | . . . Active Scanning Responses . | . . . Cargo Convoy Interrupts . | . . . Stealth | -11 -10 -9 --------- Run | Yrd Mat Mat Distress Signals 3 | . 1 2 Communications Jammed . | . . . Distress Signals . | . . . Times Spotted 29 | . 10 19 Peak Tracking Total 4 | . 4 4 Tactical Retreats 1 | . . 1 Traps | -11 -10 -9 ------- Run | Yrd Mat Mat Traps Triggered 1 | . 1 . Indirectly . | . . . Trap Hack Attempts . | . . . Triggered . | . . . Disarmed . | . . . Reprogrammed . | . . . Reused . | . . . Traps Extracted . | . . . Installed . | . . . Triggered . | . . . Machines | -11 -10 -9 ---------- Run | Yrd Mat Mat Machines Disabled . | . . . Max in Single Turn . | . . . Machines Repaired . | . . . Machines Dismantled . | . . . Machines Sabotaged . | . . . Overloaded Fab Kills . | . . . Hacking | -11 -10 -9 --------- Run | Yrd Mat Mat Machines Accessed 2 | . . 2 Terminals 1 | . . 1 Fabricators . | . . . Repair Stations 1 | . . 1 Recycling Units . | . . . Scanalyzers . | . . . Garrison Access . | . . . Total Hacks 4 | . . 4 Successful 2 | . . 2 Failed 2 | . . 2 Catastrophic . | . . . Database Lockouts . | . . . Manual . | . . . Terminals 1 | . . 1 Fabricators . | . . . Repair Stations 3 | . . 3 Recycling Units . | . . . Scanalyzers . | . . . Garrison Access . | . . . Terminal Hacks 1 | . . 1 Locate Traps 1 | . . 1 Fabricator Hacks . | . . . Repair Station Hacks 1 | . . 1 Scan Component 1 | . . 1 Recycling Unit Hacks . | . . . Scanalyzer . | . . . Garrison Access Hacks . | . . . Unauthorized Hacks . | . . . Terminals . | . . . Fabricators . | . . . Repair Stations . | . . . Recycling Units . | . . . Scanalyzers . | . . . Garrison Access . | . . . Data Cores Recovered . | . . . Used . | . . . Hacking Detections 1 | . . 1 Full Trace Events 1 | . . 1 Feedback Events . | . . . Feedback Blocked . | . . . Robot Schematics Acquired . | . . . Robots Built . | . . . Authchips . | . . . Time . | . . . Total Robot Build Rating . | . . . Part Schematics Acquired . | . . . Parts Built . | . . . Authchips . | . . . Time . | . . . Total Part Build Rating . | . . . Parts Repaired . | . . . Time . | . . . Parts Recycled . | . . . Recycled Matter . | . . . Retrieved Matter . | . . . Retrieved Components . | . . . Parts Scanalyzed . | . . . Part Schematics Acquired . | . . . Parts Damaged . | . . . Bothacking | -11 -10 -9 ------------ Run | Yrd Mat Mat Used RIF Installer . | . . . Robots Hacked . | . . . Non-combat . | . . . Combat . | . . . Robot Hacks Applied . | . . . Relay Couplers Released . | . . . Fabnet Peak Effective % . | . . . Robots Rewired . | . . . Allies Hacked . | . . . Hacks Repelled . | . . . Allies | -11 -10 -9 -------- Run | Yrd Mat Mat Total Allies . | . . . Largest Group . | . . . Highest-Rated Group . | . . . Highest-Rated Ally . | . . . Total Orders . | . . . Ally Attacks . | . . . Total Damage . | . . . Kills . | . . . Allies Corrupted . | . . . Allies Melted . | . . . Intel | -11 -10 -9 ------- Run | Yrd Mat Mat Robot Analysis Total . | . . . Derelict Logs Recovered . | . . . Drone Launches . | . . . Drone Recoveries . | . . . Exploration | -11 -10 -9 ------------- Run | Yrd Mat Mat Turns Passed 1531 | 84 340 1107 Spaces Moved 482 | 84 190 208 Core 60 | 40 . 20 Treads . | . . . Legs 284 | 44 190 50 Wheels . | . . . Hover . | . . . Flight 138 | . . 138 Fastest Speed 50 | 50 120 190 Average Speed 273 | 86 132 478 Slowest Speed 600 | 120 190 600 Overloaded Moves . | . . . Propulsion Burnouts . | . . . Robots Hopped . | . . . Cave-ins Triggered . | . . . Exploration Rate (%) 23 | 4 42 23 Regions Visited 2 Branch Regions . Pre-discovered Areas . | . . . Known Exits Taken . | . . . Unknown Exits Taken 2 | 1 1 . Scrap Searched . | . . . Spaces Dug . | . . . Terrain Destroyed 54 | . . 54 Melee . | . . . Projectile . | . . . AOE 54 | . . 54 Terrain Rammed . | . . . Walls Destroyed . | . . . Machines Disabled . | . . . Actions | -11 -10 -9 --------- Run | Yrd Mat Mat Total 585 | 95 227 263 Wait . | . . . Move 480 | 83 189 208 Hop . | . . . Pick Up 17 | 6 4 7 Fast Attach . | . . . Attach 13 | 6 1 6 Detach . | . . . Swap 6 | . 3 3 Drop 4 | . 2 2 Fire 64 | . 28 36 Melee . | . . . Ram 1 | . . 1 Kick . | . . . Crush . | . . . Escape Stasis . | . . . Rewire . | . . . Trap . | . . . Miscellaneous . | . . . Route ------- -11/Scrapyard -10/Materials (discovered 2 exits: *Mat x2) -9/Materials History --------- Turn | Location | Event 17 | -11/Scrapyard | Discovered new exit (range 16) 85 | -11/Scrapyard | Entered Materials 205 | -10/Materials | Discovered new exit (range 11) 329 | -10/Materials | Build established: Mutant 334 | -10/Materials | Discovered new exit (range 16) 425 | -10/Materials | Entered another Materials area 425 | -9/Materials | Evolved 2 slots: Utility x2 596 | -9/Materials | Core integrity fell below 50% 628 | -9/Materials | Lost 5 parts (1p1n1u2w) 1516 | -9/Materials | Core integrity fell below 20% 1532 | -9/Materials | Destroyed by L-31 Rogue with Katana Last Messages --------------- 01466_ U-05 Engineer lays Concrete. 01467_ U-05 Engineer builds a Wall. 01468_ U-05 Engineer lays Concrete. 01477_ U-05 Engineer builds a Wall. 01479_ R-06 Scavenger destroyed. 01479_ W-16 Scout destroyed. 01479_ U-05 Engineer lays Concrete. 01479_ U-05 Engineer builds a Wall. 01480_ U-05 Engineer lays Concrete. 01481_ U-05 Engineer builds a Wall. 01486_ U-05 Engineer lays Concrete. 01489_ U-05 Engineer builds a Wall. 01498_ U-05 Engineer lays Concrete. 01499_ U-05 Engineer builds a Wall. 01511_ Lgt. Ion Engine destroyed. 01516_ R-06 Scavenger collects Imp. Ion Engine. 01521_ R-06 Scavenger collects Hvy. Assault Rifle. 01523_ Rocket Launcher destroyed. 01523_ Flight Unit destroyed. Map ----- +----------------------------------------------------+ | ?????????????????????????????????????????????????? | | ?????????????????????????????????????????????????? | | ?????????? ??????????????????????????????????????? | | ?????????? ??????????????????????????????????????? | | ?????????? ??????????????????????????????????????? | | ?????????? ??????????????????????????????????????? | | ?????????? ??????????????????????????????????????? | | ?????????? ??????????????????????????????????????? | | ?????????? #?????????+###????????????????????????? | | ?????????# #????????? ????????????????????????? | | ?????????# #????????? ????????????????????????? | | ?????????# #?????????? ????????????????????????? | | ?????????# #??????????!!!????????????????????????? | | ?????????# #??????????!! ?###????????????????????? | | ?######### ##?????????!!!# #????????????????????? | | """"""" # ########### ### ######???????????????? | | """"""" + *% ????????? | | """"""" # ########### # # ######???????????????? | | """"""" + #??? ###%###????????????????????? | | """"""" # #??? """ # g ##???????????????????? | | # #?? """ # ##???????????????????? | | ! # #?? """ + g ##???????????????????? | | # ## # ##???????????????????? | | ##+###### + """ # g #????????????????????? | | ?# #????# ## """?## l ##????????????????????? | | ?# #????# #? """??# @ #?????????????????????? | | ## #????# #????? ??## ##????????????????????? | | # #???## ########??## r##????????????????????? | | # ###### # #??## %##????????????????????? | | # # #?# # ??????????????????? | | + # "" #?# # ??????????????? | | # # """#?### ??????????? | | ### #### +^ S"#??## #######" ?????????? | | #?# #?## # #???# #????????!"!??????????? | | #?# #??# ############ #?????????????????????? | | ##?# #??# #???? !# #?????????????????????? | | ####+#### #???? # #?####????????????????? | | # #????? # # ?????????????????? | | """ # #????? # a# ??????????????????? | | """ + #?????? + + ????????????????????? | | """ # #?????? # #?????????????????????? | | # #???######## ##????????????????????? | | ######### ########### #????????????????????? | | ?# % % % #????????????????????? | | ?# T #????????????????????? | | ?# #????????????????????? | | ?# #### ########+## #????????????????????? | | ?# #??# ## # # ###????????????????????? | | ?# #??# ## """ ### #??????????????????????? | | ?# #??# ## """ #???#??????????????????????? | +----------------------------------------------------+ Best States ------------- Heat Dissipation 42 Energy Generation 10 Energy Capacity 250 Matter Stores 387 Matter Capacity 400 Sight Range 18 Terrain Scan Density 10 Evasion (%) 55 Item Schematics ----------------- None Robot Schematics ------------------ None Fabricated ------------ Nothing Alien Tech Used ----------------- None Achievements -------------- None Challenges ------------ None Game ------ Seed MetafiberEnhancedTorch Manual? 0 Play Time 00:07:46 Cumulative 2.4 hours Start 2024.04.26 @ 07:45:28 End 2024.04.26 @ 07:55:07 Sessions 1 Manual Loads 0 Difficulty Rogue Special Mode None Game No. 5 Rogue 2 Adventurer 3 Explorer 0 Win Type - Total 0 Types 0/0/0/0/0/0/0/0/0 Lore% 4 Gallery% 8 Achievement% 10 Wizard Run 0 Options --------- Layout 1 ASCII 0 Keyboard 0 Movement Mouse Keybinds 0 Fullscreen 1 Font 24/Smallcaps Map View 50x35 Zoom Use 0% Tactical HUD 1 Map Filters NONE Filters NONE Steam 0 RUN: 6c10c17e-dfcd-4d6b-92ea-cdf77f8b981d